bitfinex/quotes_SOLUSD_20220207
["timestamp","ask_amount","ask_price","bid_price","bid_amount"]
[1644265038366,18.36682857,120.56,120.46,0.024]
[1644265039368,22.51582857,120.56,120.46,0.024]
[1644265039769,0.25,120.56,120.46,0.024]
[1644265039968,9.97,120.59,120.46,2.16814444]
[1644265040173,15.97,120.59,120.47,46.40465305]
[1644265040373,15.97,120.59,120.48,0.024]
[1644265040570,15.97,120.59,120.48,2.16814444]
[1644265040772,15.97,120.59,120.49,36.52352431]
[1644265040969,15.97,120.59,120.5,0.024]
[1644265041370,16.22,120.59,120.5,0.024]
[1644265041772,6.25,120.59,120.5,0.024]
[1644265041973,0.25,120.59,120.5,0.024]
[1644265042273,16.22,120.62,120.5,0.024]
[1644265042677,15.97,120.62,120.5,0.024]
[1644265043780,9.97,120.62,120.5,1.18901086]
[1644265043976,98.0159,120.63,120.51,0.024]
[1644265044176,23.1031,120.65,120.51,36.38302687]
[1644265044378,29.1031,120.65,120.51,42.38302687]
[1644265044578,29.1031,120.65,120.51,43.79803773]
[1644265044777,29.1031,120.65,120.51,42.63302687]
[1644265045181,29.1031,120.65,120.51,43.79803773]
[1644265045579,35.20445,120.65,120.51,53.87603773]
[1644265045980,35.20445,120.65,120.51,65.14882687]
[1644265046180,14.80717164,120.64,120.51,53.87603773]
[1644265046583,21.05717164,120.64,120.51,53.85203773]
[1644265047189,6.25,120.64,120.51,53.85203773]
[1644265047383,6.25,120.64,120.51,52.68702687]
[1644265047583,6.25,120.64,120.51,52.71102687]
[1644265048186,6.25,120.64,120.51,53.87603773]
[1644265048384,0.25,120.64,120.51,53.87603773]
[1644265048685,39.3231,120.65,120.51,52.71102687]
[1644265050088,39.3231,120.65,120.51,53.87603773]
[1644265050293,39.3231,120.65,120.51,52.71102687]
[1644265050787,39.3231,120.65,120.51,52.68702687]
[1644265050788,56.27710021,120.65,120.51,52.68702687]
[1644265050988,56.27710021,120.65,120.51,52.43702687]
[1644265051989,56.02710021,120.65,120.51,52.43702687]
[1644265052190,53.88027164,120.65,120.51,52.68702687]
[1644265052794,23.1031,120.65,120.51,52.68702687]
[1644265052990,23.1031,120.65,120.51,53.85203773]
[1644265053192,23.1031,120.65,120.52,12.438]
[1644265053391,2.14682857,120.67,120.53,37.52505287]
[1644265053591,6.0,120.67,120.53,43.52505287]
[1644265053793,6.0,120.68,120.55,45.34087765]
[1644265054194,120.56457164,120.71,120.55,51.59087765]
[1644265054493,120.56457164,120.71,120.57,34.49906265]
[1644265054696,122.96140021,120.71,120.57,40.74906265]
[1644265055510,108.15422857,120.71,120.57,40.74906265]
[1644265055909,146.87476209,120.71,120.57,34.74906265]
[1644265056510,148.03429421,120.71,120.57,34.74906265]
[1644265056712,4.144,120.7,120.57,34.49906265]
[1644265057010,4.144,120.7,120.54,1.16501086]
[1644265057011,40.86736209,120.69,120.54,1.16501086]
[1644265057213,4.144,120.68,120.53,13.60251086]
[1644265057415,9.97,120.67,120.53,19.60251086]
[1644265057610,32.92400021,120.67,120.53,19.60251086]
[1644265057813,33.17400021,120.67,120.53,19.60251086]
[1644265058010,33.17400021,120.67,120.54,41.0275464]
[1644265058211,33.17400021,120.67,120.54,47.0275464]
[1644265058911,18.36682857,120.67,120.54,47.2775464]
[1644265060216,2.14682857,120.66,120.54,47.2775464]
[1644265060719,8.39682857,120.66,120.54,41.2775464]
[1644265062118,0.25,120.66,120.54,47.2775464]
[1644265062319,10.22,120.67,120.54,47.2775464]
[1644265062516,16.22,120.67,120.54,47.2775464]
[1644265063619,18.36682857,120.67,120.54,47.2775464]
[1644265063918,15.97,120.67,120.54,47.2775464]
[1644265064318,15.97,120.67,120.54,59.7136464]
[1644265065219,15.97,120.67,120.54,60.87865726]
[1644265065421,15.97,120.67,120.55,2.14329212]
[1644265065722,6.0,120.67,120.58,40.77355363]
[1644265066119,14.80717164,120.7,120.58,47.02355363]
[1644265066120,20.80717164,120.7,120.58,47.02355363]
[1644265066720,14.80717164,120.7,120.58,47.02355363]
[1644265066923,1.15953212,120.72,120.58,47.02355363]
[1644265067126,1.15953212,120.74,120.59,14.57539212]
[1644265067322,23.88981015,120.75,120.59,14.57539212]
[1644265067323,5.30353212,120.75,120.6,44.39808449]
[1644265067522,1.15953212,120.76,120.6,56.51137661]
[1644265067724,1.15953212,120.76,120.61,2.14329212]
[1644265067921,1.15953212,120.76,120.62,54.69900862]
[1644265068121,1.15953212,120.76,120.62,60.69900862]
[1644265068325,1.15953212,120.76,120.63,2.14329212]
[1644265068522,1.15953212,120.75,120.64,40.58195692]
[1644265068721,1.15953212,120.76,120.64,40.83195692]
[1644265068921,1.15953212,120.76,120.66,34.89814213]
[1644265069122,1.15953212,120.76,120.66,40.89814213]
[1644265069320,2.14682857,120.76,120.66,41.14814213]
[1644265069522,2.14682857,120.76,120.66,40.89814213]
[1644265070122,2.14682857,120.76,120.66,35.14814213]
[1644265070324,2.39682857,120.76,120.66,35.14814213]
[1644265070622,0.25,120.76,120.66,41.14814213]
[1644265070826,6.25,120.77,120.66,41.14814213]
[1644265071222,0.25,120.77,120.66,41.14814213]
[1644265071425,1.40953212,120.78,120.66,41.14814213]
[1644265071625,7.40953212,120.78,120.66,41.14814213]
[1644265072025,7.15953212,120.78,120.66,41.14814213]
[1644265072226,6.0,120.78,120.68,34.63741128]
[1644265072627,6.0,120.79,120.68,40.88741128]
[1644265073127,9.30636069,120.8,120.68,40.88741128]
[1644265073330,3.30636069,120.8,120.68,40.88741128]
[1644265073527,8.14682857,120.8,120.68,40.88741128]
[1644265073927,8.14682857,120.8,120.68,53.31061128]
[1644265074227,8.39682857,120.8,120.68,53.31061128]
[1644265074629,8.14682857,120.8,120.68,65.08461128]
[1644265075432,6.0,120.8,120.68,65.08461128]
[1644265075637,8.14682857,120.82,120.69,2.14682857]
[1644265075834,6.0,120.82,120.7,49.79161001]
[1644265076235,42.61865975,120.83,120.7,56.04161001]
[1644265076434,29.55133212,120.83,120.7,58.18843858]
[1644265076631,28.3918,120.83,120.7,58.18843858]
[1644265076833,28.3918,120.83,120.7,56.04161001]
[1644265077032,28.6418,120.83,120.7,56.04161001]
[1644265077232,28.3918,120.83,120.7,56.04161001]
[1644265077431,28.3918,120.83,120.7,55.79161001]
[1644265077432,2.14682857,120.82,120.7,55.79161001]
[1644265077632,24.71032857,120.82,120.7,37.37031001]
[1644265077831,9.97,120.81,120.7,37.37031001]
[1644265078033,4.14,120.8,120.7,37.37031001]
[1644265078232,6.28682857,120.8,120.7,37.37031001]
[1644265078435,2.14682857,120.79,120.7,37.37031001]
[1644265078633,8.14682857,120.79,120.7,37.37031001]
[1644265078833,8.39682857,120.79,120.7,37.37031001]
[1644265079437,2.14682857,120.78,120.64,34.8395]
[1644265079635,22.25882857,120.78,120.64,30.8695]
[1644265079836,22.50882857,120.78,120.64,30.8695]
[1644265080036,18.36682857,120.78,120.64,30.8695]
[1644265080436,16.22,120.78,120.65,35.72541535]
[1644265080636,2.14682857,120.77,120.65,41.72541535]
[1644265080834,6.53882857,120.77,120.65,35.72541535]
[1644265081038,24.96722857,120.77,120.65,35.72541535]
[1644265081258,12.11682857,120.76,120.65,35.72541535]
[1644265081436,4.142,120.75,120.57,48.59851086]
[1644265081637,9.97,120.74,120.57,48.59851086]
[1644265081836,12.36682857,120.74,120.57,47.4335]
[1644265082036,18.36682857,120.74,120.57,47.4335]
[1644265082236,2.14682857,120.73,120.57,47.4335]
[1644265082437,3.644,120.72,120.58,48.66171422]
[1644265082636,12.4344,120.71,120.58,67.09541422]
[1644265082838,12.6844,120.71,120.58,67.34541422]
[1644265083138,20.83122857,120.71,120.58,54.66171422]
[1644265083337,18.6844,120.71,120.58,54.66171422]
[1644265084737,18.6844,120.71,120.58,54.91171422]
[1644265084941,18.6844,120.71,120.58,54.66171422]
[1644265086242,18.6844,120.71,120.58,54.91171422]
[1644265086839,18.6844,120.71,120.58,54.66171422]
[1644265087040,0.32131693,120.69,120.58,48.66171422]
[1644265087242,12.4416,120.65,120.58,48.66171422]
[1644265087640,9.97,120.64,120.58,48.66171422]
[1644265087841,10.22,120.64,120.58,48.66171422]
[1644265088040,16.22,120.64,120.58,48.66171422]
[1644265089142,16.22,120.64,120.58,48.91171422]
[1644265089744,30.80832857,120.64,120.51,0.024]
[1644265089944,34.95432857,120.64,120.51,0.024]
[1644265090144,26.65975178,120.63,120.51,0.024]
[1644265090345,9.97,120.62,120.48,1.18901086]
[1644265090545,35.20625272,120.62,120.48,0.024]
[1644265090844,14.59142857,120.61,120.49,35.76166825]
[1644265091043,14.117,120.6,120.5,0.024]
[1644265091348,16.51382857,120.6,120.5,0.024]
[1644265091545,22.51382857,120.6,120.5,0.024]
[1644265092043,20.367,120.6,120.5,0.024]
[1644265092244,16.22,120.6,120.5,0.024]
[1644265093244,30.81192857,120.6,120.5,0.024]
[1644265093948,41.5019,120.58,120.5,0.024]
[1644265094143,9.97,120.57,120.5,0.024]
[1644265094345,12.36682857,120.57,120.49,35.73766825]
[1644265094543,2.14682857,120.56,120.49,35.73766825]
[1644265094744,22.4201,120.55,120.49,35.73766825]
[1644265094944,9.97,120.55,120.49,35.73766825]
[1644265095146,14.117,120.59,120.49,41.98766825]
[1644265095347,9.97,120.59,120.49,42.01166825]
[1644265095546,15.97,120.59,120.49,42.01166825]
[1644265095948,9.97,120.59,120.49,42.01166825]
[1644265096576,9.97,120.59,120.49,36.01166825]
[1644265096774,10.22,120.59,120.49,36.01166825]
[1644265096974,22.416,120.59,120.49,42.01166825]
[1644265097275,14.118,120.64,120.49,42.01166825]
[1644265097476,78.2204,120.67,120.5,15.6767867]
[1644265097678,78.2204,120.67,120.51,57.78335549]
[1644265097975,88.1904,120.67,120.51,57.78335549]
[1644265098175,100.6283,120.67,120.51,64.03335549]
[1644265098377,100.6283,120.67,120.51,54.06335549]
[1644265098577,120.34562763,120.67,120.51,54.06335549]
[1644265098980,4.146,120.66,120.51,54.06335549]
[1644265099180,9.97,120.65,120.51,54.06335549]
[1644265099380,12.4423,120.63,120.51,66.50485549]
[1644265099780,0.25,120.63,120.51,68.65168406]
[1644265100580,0.25,120.63,120.51,78.62168406]
[1644265100883,84.4704,120.67,120.51,78.62168406]
[1644265101485,84.2204,120.67,120.51,76.47485549]
[1644265101984,96.6583,120.67,120.51,76.47485549]
[1644265102684,110.62562763,120.67,120.51,76.47485549]
[1644265102888,9.97,120.66,120.53,57.44145795]
[1644265103182,20.364,120.66,120.53,63.69145795]
[1644265103982,12.4398,120.65,120.53,63.69145795]
[1644265104184,18.6898,120.65,120.53,63.69145795]
[1644265106891,12.6898,120.65,120.53,63.69145795]
[1644265107688,18.6898,120.65,120.53,63.69145795]
[1644265108287,18.4398,120.65,120.53,65.83828652]
[1644265108488,12.4398,120.65,120.53,65.83828652]
[1644265109088,12.4398,120.65,120.53,67.00329738]
[1644265109493,90.6582,120.67,120.53,65.83828652]
[1644265109688,18.4378,120.67,120.53,67.00329738]
[1644265109888,18.4378,120.67,120.54,1.16501086]
[1644265110094,6.0,120.67,120.57,12.4359]
[1644265110292,6.0,120.67,120.58,42.17588809]
[1644265110489,12.4356,120.69,120.58,42.17588809]
[1644265110690,18.4356,120.69,120.58,48.42588809]
[1644265111090,18.4356,120.69,120.58,63.00741666]
[1644265111491,22.4033,120.71,120.58,63.00741666]
[1644265111691,1.15953212,120.73,120.58,63.00741666]
[1644265111893,1.20091134,120.74,120.58,72.97741666]
[1644265112101,0.04137922,120.74,120.59,1.16501086]
[1644265112291,0.04137922,120.74,120.63,12.4281]
[1644265112494,0.04137922,120.74,120.64,45.4295725]
[1644265112693,0.04137922,120.74,120.64,53.82640107]
[1644265112893,13.58983212,120.74,120.64,45.6795725]
[1644265113094,19.58983212,120.74,120.64,45.4295725]
[1644265113392,18.4303,120.74,120.64,45.6795725]
[1644265113795,18.47167922,120.74,120.64,45.6795725]
[1644265113997,18.4303,120.74,120.64,45.6795725]
[1644265116099,18.6803,120.74,120.64,45.6795725]
[1644265116800,18.6803,120.74,120.64,45.4295725]
[1644265117099,12.4333,120.71,120.61,12.4316]
[1644265117298,12.6833,120.71,120.57,11.13501086]
[1644265117604,20.83012857,120.71,120.57,6.0]
[1644265117799,20.83012857,120.71,120.56,6.0]
[1644265118099,18.6833,120.71,120.57,44.80882967]
[1644265118499,18.6833,120.71,120.57,50.80882967]
[1644265118898,12.4351,120.69,120.59,12.4337]
[1644265119098,12.4351,120.69,120.6,46.96902074]
[1644265119099,18.4351,120.69,120.6,46.96902074]
[1644265119700,18.4351,120.69,120.6,47.21902074]
[1644265120901,18.4351,120.69,120.6,46.96902074]
[1644265121102,18.6851,120.69,120.57,12.4359]
[1644265121300,18.6851,120.69,120.55,47.4809]
[1644265121501,28.6551,120.69,120.55,53.4809]
[1644265122100,28.6551,120.69,120.56,45.00103234]
[1644265123323,28.6551,120.69,120.56,51.25103234]
[1644265124731,28.6551,120.69,120.56,63.68853234]
[1644265125334,28.4051,120.69,120.56,63.68853234]
[1644265126830,28.6551,120.69,120.56,63.68853234]
[1644265127029,28.6551,120.69,120.56,63.43853234]
[1644265127230,42.37242763,120.69,120.56,51.00103234]
[1644265127532,12.4422,120.64,120.53,1.16501086]
[1644265127729,22.6622,120.64,120.52,1.16501086]
[1644265127933,28.6622,120.64,120.51,24.14041086]
[1644265128332,28.6622,120.64,120.52,44.40946336]
[1644265128730,28.6622,120.64,120.52,50.65946336]
[1644265129732,28.6622,120.64,120.52,63.10106336]
[1644265129933,28.6622,120.64,120.52,64.26607422]
[1644265130437,28.6622,120.64,120.52,63.10106336]
[1644265130834,28.6622,120.64,120.52,50.65946336]
[1644265132938,28.6622,120.64,120.52,63.10136336]
[1644265136340,27.6622,120.64,120.52,63.10136336]
[1644265136940,27.6622,120.64,120.52,65.24819193]
[1644265138948,27.4122,120.64,120.52,65.24819193]
[1644265139347,21.4122,120.64,120.52,66.16320279]
[1644265139546,27.4122,120.64,120.52,64.99819193]
[1644265140146,27.4122,120.64,120.52,62.85136336]
[1644265140746,27.6622,120.64,120.52,63.10136336]
[1644265141244,27.4122,120.64,120.52,63.10136336]
[1644265141454,21.4122,120.64,120.54,55.23131486]
[1644265141644,11.4422,120.64,120.54,61.23131486]
[1644265141845,11.4422,120.64,120.54,63.62814343]
[1644265142046,99.1931,120.67,120.54,63.62814343]
[1644265142244,105.1931,120.67,120.54,63.62814343]
[1644265143046,12.4383,120.65,120.54,63.62814343]
[1644265143247,63.7281,120.67,120.54,63.62814343]
[1644265144248,63.7281,120.67,120.54,64.79315429]
[1644265145049,76.1653,120.67,120.54,64.79315429]
[1644265145848,76.1653,120.67,120.55,1.16501086]
[1644265146050,76.1653,120.67,120.56,35.19170686]
[1644265146248,66.1953,120.67,120.59,46.24907885]
[1644265146449,18.4372,120.67,120.59,46.24907885]
[1644265146752,6.0,120.67,120.59,52.49907885]
[1644265147250,18.4351,120.69,120.59,64.93417885]
[1644265148552,18.6851,120.69,120.59,64.93417885]
[1644265149151,18.6851,120.69,120.59,52.24907885]
[1644265149353,18.6851,120.69,120.59,46.49907885]
[1644265149552,19.84463212,120.69,120.59,46.49907885]
[1644265152060,19.84463212,120.69,120.59,0.25]
[1644265152256,11.12953212,120.68,120.57,0.25]
[1644265152457,12.4403,120.65,120.57,0.25]
[1644265152655,18.4403,120.65,120.55,0.25]
[1644265152856,18.6903,120.65,120.54,1.41501086]
[1644265153055,18.6903,120.65,120.55,44.8775482]
[1644265153255,28.6603,120.65,120.55,45.1275482]
[1644265156962,28.6603,120.65,120.53,13.60561086]
[1644265157165,31.96666069,120.65,120.53,7.16501086]
[1644265157364,57.89696802,120.65,120.53,6.0]
[1644265157563,1.15953212,120.64,120.52,32.05771086]
[1644265157766,9.97,120.63,120.52,32.30771086]
[1644265157965,9.97,120.63,120.53,35.89931247]
[1644265158164,12.4421,120.62,120.53,41.89931247]
[1644265158666,18.6921,120.62,120.53,41.89931247]
[1644265159667,18.6921,120.62,120.53,42.14931247]
[1644265160062,18.6921,120.62,120.53,54.09061247]
[1644265164089,12.6921,120.62,120.53,54.09061247]
[1644265164288,18.6921,120.62,120.53,54.09061247]
[1644265164487,12.6921,120.62,120.53,54.09061247]
[1644265165088,0.25,120.62,120.53,54.09061247]
[1644265165291,12.4402,120.64,120.54,2.14682857]
[1644265165492,1.15953212,120.66,120.55,52.09569148]
[1644265165694,6.0,120.66,120.55,59.01070234]
[1644265165894,30.17533212,120.68,120.56,2.14682857]
[1644265166098,30.17533212,120.68,120.57,39.14655065]
[1644265166292,29.0158,120.68,120.57,39.39655065]
[1644265166493,41.4521,120.68,120.57,59.97997922]
[1644265166698,41.7021,120.68,120.57,51.83315065]
[1644265166894,42.86163212,120.68,120.57,51.83315065]
[1644265168194,482.86163212,120.68,120.57,51.83315065]
[1644265169198,482.86163212,120.68,120.57,57.83315065]
[1644265169397,482.86163212,120.68,120.57,51.83315065]
[1644265170001,1.15953212,120.67,120.57,51.83315065]
[1644265170197,7.40953212,120.67,120.57,51.83315065]
[1644265170403,12.4384,120.66,120.57,51.83315065]
[1644265170603,18.6884,120.66,120.55,12.4388]
[1644265170903,19.84793212,120.66,120.55,12.6888]
[1644265171103,18.6884,120.66,120.55,12.6888]
[1644265171304,19.84793212,120.66,120.55,12.6888]
[1644265171699,18.6884,120.66,120.56,40.87372733]
[1644265171902,18.6884,120.66,120.56,53.31152733]
[1644265172104,18.6884,120.66,120.56,53.56152733]
[1644265172501,18.6884,120.66,120.56,41.12372733]
[1644265172701,19.84793212,120.66,120.56,41.12372733]
[1644265173503,21.99476069,120.66,120.56,41.12372733]
[1644265174209,21.99476069,120.66,120.56,0.25]
[1644265174605,21.99476069,120.66,120.54,60.13]
[1644265175207,21.99476069,120.66,120.55,41.93562383]
[1644265175712,21.99476069,120.66,120.55,42.18562383]
[1644265177808,19.84793212,120.66,120.55,54.62512383]
[1644265178009,19.84793212,120.66,120.55,60.62512383]
[1644265178208,18.6884,120.66,120.55,60.62512383]
[1644265178610,18.6884,120.66,120.55,61.79013469]
[1644265179411,12.6884,120.66,120.55,61.79013469]
[1644265180611,0.25,120.66,120.57,44.87985811]
[1644265180812,6.0,120.66,120.59,41.5889791]
[1644265181014,12.4363,120.67,120.59,41.5889791]
[1644265181212,6.0,120.67,120.59,41.8389791]
[1644265181613,446.0,120.68,120.59,47.8389791]
[1644265181815,446.0,120.68,120.59,41.8389791]
[1644265182013,447.15953212,120.68,120.59,41.8389791]
[1644265182212,446.25,120.68,120.59,41.8389791]
[1644265183014,458.6853,120.68,120.59,54.2744791]
[1644265184715,458.6853,120.68,120.59,60.2744791]
[1644265186618,458.6853,120.68,120.59,54.2744791]
[1644265188522,18.6853,120.68,120.59,54.2744791]
[1644265189121,18.6853,120.68,120.59,0.25]
[1644265189322,2.14682857,120.67,120.56,23.92581086]
[1644265189526,12.4387,120.65,120.56,22.7608]
[1644265189721,12.6887,120.65,120.56,22.7608]
[1644265189921,18.6887,120.65,120.56,22.7608]
[1644265190325,18.6887,120.65,120.57,40.87951194]
[1644265192023,18.6887,120.65,120.57,53.31731194]
[1644265192223,18.6887,120.65,120.57,53.56731194]
[1644265192527,6.25,120.65,120.57,53.56731194]
[1644265192926,0.25,120.65,120.57,53.56731194]
[1644265193125,18.6873,120.66,120.57,53.56731194]
[1644265193525,18.6873,120.66,120.57,41.12951194]
[1644265196129,18.4373,120.66,120.57,41.12951194]
[1644265197231,18.6873,120.66,120.57,41.12951194]
[1644265197731,18.6873,120.66,120.57,0.25]
[1644265197934,2.14682857,120.65,120.55,1.16501086]
[1644265198135,12.4432,120.62,120.53,1.18901086]
[1644265198335,9.97,120.61,120.53,0.024]
[1644265198535,12.11682857,120.61,120.52,12.3931]
[1644265198731,18.36682857,120.61,120.53,37.5759583]
[1644265199134,41.4916,120.6,120.52,0.024]
[1644265199334,22.4175,120.59,120.5,0.024]
[1644265199534,24.56432857,120.59,120.5,0.024]
[1644265199733,2.14682857,120.58,120.5,0.024]
[1644265199933,12.11682857,120.58,120.48,1.16501086]
[1644265200135,18.11682857,120.58,120.49,41.5468296]
[1644265200337,18.36682857,120.58,120.49,41.5708296]
[1644265200536,12.4488,120.56,120.49,41.5468296]
[1644265200740,12.6988,120.56,120.48,0.024]
[1644265200953,28.6688,120.56,120.48,0.024]
[1644265201137,2.14682857,120.55,120.46,1.16501086]
[1644265201337,12.36682857,120.55,120.46,1.16501086]
[1644265201536,18.36682857,120.55,120.46,1.18901086]
[1644265201735,12.4532,120.53,120.47,40.53354608]
[1644265201934,16.22,120.55,120.47,39.03354608]
[1644265202134,0.25,120.53,120.47,39.03354608]
[1644265202338,16.22,120.55,120.46,0.024]
[1644265202536,0.30048185,120.52,120.43,1.16501086]
[1644265202735,12.4558,120.5,120.4,1.16501086]
[1644265202937,22.4258,120.5,120.4,1.16501086]
[1644265203136,28.6758,120.5,120.41,1.16501086]
[1644265203439,16.22,120.5,120.41,44.45954311]
[1644265203838,16.22,120.5,120.43,46.76500459]
[1644265204035,6.0,120.5,120.43,47.01500459]
[1644265204236,9.97,120.54,120.43,47.01500459]
[1644265204536,0.25,120.5,120.43,47.45980719]
[1644265205138,0.25,120.5,120.43,47.20980719]
[1644265205339,0.25,120.5,120.43,47.45980719]
[1644265205538,9.97,120.52,120.43,47.45980719]
[1644265205738,10.22,120.52,120.43,47.45980719]
[1644265205942,16.22,120.52,120.43,47.45980719]
[1644265206539,16.22,120.52,120.43,47.20980719]
[1644265206740,16.22,120.52,120.43,47.45980719]
[1644265207945,15.97,120.52,120.43,47.45980719]
[1644265208344,6.0,120.52,120.43,47.45980719]
[1644265208548,12.4499,120.54,120.43,53.45980719]
[1644265208745,0.25,120.54,120.43,53.45980719]
[1644265209346,0.25,120.54,120.43,59.90780719]
[1644265209547,0.25,120.54,120.43,65.40780719]
[1644265209747,0.25,120.54,120.43,46.95980719]
[1644265209948,6.25,120.56,120.43,46.95980719]
[1644265210149,16.22,120.56,120.43,46.95980719]
[1644265210350,10.22,120.56,120.43,46.95980719]
[1644265210548,16.22,120.56,120.43,46.95980719]
[1644265210749,12.4499,120.54,120.43,46.70980719]
[1644265210950,9.97,120.53,120.43,46.70980719]
[1644265211151,33.77028953,120.53,120.43,46.70980719]
[1644265211350,34.02028953,120.53,120.43,46.70980719]
[1644265211552,31.87346096,120.53,120.43,46.70980719]
[1644265211852,28.4208,120.53,120.43,46.70980719]
[1644265212049,18.4508,120.53,120.43,46.70980719]
[1644265212250,6.0,120.53,120.43,46.95980719]
[1644265212450,15.97,120.56,120.43,46.95980719]
[1644265213062,12.4488,120.55,120.43,46.95980719]
[1644265213262,14.84562857,120.55,120.43,46.95980719]
[1644265213466,20.84562857,120.55,120.43,46.95980719]
[1644265214067,46.1657562,120.55,120.43,46.95980719]
[1644265214974,44.01892763,120.55,120.43,46.95980719]
[1644265215167,44.01892763,120.55,120.43,0.6948026]
[1644265215369,59.42595812,120.55,120.43,0.6948026]
[1644265215569,59.42595812,120.55,120.43,0.4448026]
[1644265215968,4.149,120.54,120.43,0.4448026]
[1644265216178,12.4545,120.51,120.43,0.4448026]
[1644265216669,18.7045,120.51,120.43,0.4448026]
[1644265221386,9.97,120.5,120.43,0.4448026]
[1644265221575,12.4573,120.48,120.43,0.4448026]
[1644265221776,12.7073,120.48,120.43,0.4448026]
[1644265222175,18.7073,120.48,120.43,0.4448026]
[1644265223377,18.7073,120.48,120.43,0.0048026]
[1644265223580,20.85412857,120.48,120.37,38.565533]
[1644265223777,30.82412857,120.48,120.37,38.565533]
[1644265224577,28.6773,120.48,120.37,38.565533]
[1644265224981,28.6773,120.48,120.37,38.815533]
[1644265225183,28.6773,120.48,120.37,0.024]
[1644265225381,12.4619,120.44,120.37,0.024]
[1644265225579,28.4319,120.44,120.36,0.024]
[1644265225781,28.6819,120.44,120.35,0.42796644]
[1644265226181,28.6819,120.44,120.35,0.45196644]
[1644265226584,30.82872857,120.44,120.35,0.42796644]
[1644265227383,30.82872857,120.44,120.35,0.45196644]
[1644265228084,28.4319,120.44,120.35,0.45196644]
[1644265228285,12.4619,120.44,120.35,0.45196644]
[1644265228485,12.4619,120.44,120.36,38.16531429]
[1644265228884,12.4619,120.44,120.36,37.66531429]
[1644265229284,12.4619,120.44,120.36,37.91531429]
[1644265229584,18.4619,120.44,120.36,37.91531429]
[1644265230583,12.4583,120.46,120.36,37.91531429]
[1644265230784,18.4583,120.46,120.36,37.93931429]
[1644265230983,18.4583,120.46,120.36,39.10432515]
[1644265231386,18.4583,120.46,120.36,37.93931429]
[1644265231586,18.4583,120.46,120.36,39.10432515]
[1644265232185,18.4583,120.46,120.37,1.16501086]
[1644265232388,18.4583,120.46,120.38,39.25456086]
[1644265232592,6.0,120.46,120.38,39.25456086]
[1644265232789,6.0,120.46,120.38,39.50456086]
[1644265232988,5.31153212,120.55,120.38,40.66957172]
[1644265233289,15.97,120.55,120.41,45.07579044]
[1644265233488,15.97,120.55,120.42,0.024]
[1644265233988,15.97,120.55,120.43,42.21940362]
[1644265234189,15.97,120.55,120.44,0.024]
[1644265234988,12.45,120.54,120.44,0.024]
[1644265235188,18.7,120.54,120.44,0.024]
[1644265236191,18.45,120.54,120.44,0.024]
[1644265237090,20.59682857,120.54,120.44,0.024]
[1644265237491,35.9469562,120.54,120.44,0.024]
[1644265237692,50.46364701,120.54,120.44,0.024]
[1644265237894,50.46364701,120.54,120.4,1.16501086]
[1644265238091,60.43364701,120.54,120.4,1.16501086]
[1644265238291,60.43364701,120.54,120.4,13.86661086]
[1644265238493,58.28681844,120.54,120.41,1.16501086]
[1644265238691,58.28681844,120.54,120.41,1.41501086]
[1644265238894,58.28681844,120.54,120.42,39.92849874]
[1644265239093,60.43364701,120.54,120.42,39.92849874]
[1644265239294,42.93669081,120.54,120.42,40.17849874]
[1644265239499,45.08351938,120.54,120.42,40.17849874]
[1644265239694,30.81682857,120.54,120.42,40.17849874]
[1644265239893,30.81682857,120.54,120.42,41.3435096]
[1644265240117,20.84682857,120.54,120.42,49.49033817]
[1644265240296,18.7,120.54,120.42,49.49033817]
[1644265240501,18.7,120.54,120.42,61.93993817]
[1644265241401,18.7,120.54,120.42,55.93993817]
[1644265241599,18.7,120.54,120.42,41.3435096]
[1644265241810,20.84682857,120.54,120.42,41.3435096]
[1644265242401,18.7,120.54,120.42,41.3435096]
[1644265242603,18.7,120.54,120.42,49.49033817]
[1644265243202,18.7,120.54,120.42,47.3435096]
[1644265243402,18.7,120.54,120.42,41.3435096]
[1644265244404,20.84682857,120.54,120.42,41.3435096]
[1644265246106,18.7,120.54,120.42,41.3435096]
[1644265247106,18.7,120.54,120.42,40.17849874]
[1644265253612,18.7,120.54,120.43,0.024]